[Event "11th LCC Super Blitz 2019"]
[Site "London"]
[Date "2019.12.08"]
[Round "3.15"]
[White "Kirupakaran, Vishnu"]
[Black "Essis, Essoh Jean Mathieu C"]
[Result "1-0"]
[ECO "C78"]
[WhiteElo "1871"]
[BlackElo "1438"]
[Annotator "NA"]
[PlyCount "65"]
[EventDate "2019.12.08"]
[EventType "swiss"]
[EventCountry "ENG"]
[SourceTitle "playchess.com"]
[Source "ChessBase"]
[SourceQuality "1"]
[TimeControl "180+2"]

1. e4 {[%emt 0:00:01]} e5 {[%emt 0:00:00]} 2. Nf3 {[%emt 0:00:02]} Nc6 {[%emt 0:00:00]} 3. Bb5 {[%emt 0:00:11]} a6 {[%emt 0:00:03]} 4. Ba4 {[%emt 0:00:02]} Nf6 {[%emt 0:00:03]} 5. O-O {[%emt 0:00:03]} b5 {[%emt 0:00:06]} 6. Bb3 {[%emt 0:00:02]} h6 {[%emt 0:00:02]} 7. Re1 {[%emt 0:00:10]} d6 {[%emt 0:00:01]} 8. c3 {[%emt 0:00:02]} Bg4 {[%emt 0:00:01]} 9. h3 {[%emt 0:00:01]} Bh5 {[%emt 0:00:04]} 10. d3 {[%emt 0:00:07]} b4 {[%emt 0:00:04]} 11. Ba4 {[%emt 0:00:18]} Qd7 {[%emt 0:00:13]} 12. cxb4 {[%emt 0:00:02]} Be7 {[%emt 0:00:10]} 13. Nbd2 {[%emt 0:00:03]} O-O {[%emt 0:00:02]} 14. Nf1 {[%emt 0:00:03]} d5 {[%emt 0:00:15]} 15. Ng3 {[%emt 0:00:10]} Bxf3 {[%emt 0:00:03]} 16. Qxf3 {[%emt 0:00:02]} Qd6 {[%emt 0:00:14]} 17. a3 {[%emt 0:00:13]} Nd4 {[%emt 0:00:00]} 18. Qd1 {[%emt 0:00:07]} c5 {[%emt 0:00:00]} 19. bxc5 Qxc5 {[%emt 0:00:00]} 20. Be3 {[%emt 0:00:14]} Qa7 {[%emt 0:00:07]} 21. Nf5 {[%emt 0:00:08]} Nxf5 {[%emt 0:00:03]} 22. Bxa7 {[%emt 0:00:03]} dxe4 {[%emt 0:00:04]} 23. dxe4 {[%emt 0:00:03]} Rfd8 {[%emt 0:00:01]} 24. Qc1 {[%emt 0:00:16]} Nd4 {[%emt 0:00:16]} 25. Bxd4 {[%emt 0:00:08]} Rxd4 {[%emt 0:00:01]} 26. Bb3 {[%emt 0:00:37]} Rb8 {[%emt 0:00:04]} 27. Bd5 {[%emt 0:00:08]} Nxd5 {[%emt 0:00:02]} 28. exd5 {[%emt 0:00:02]} Rxd5 {[%emt 0:00:02]} 29. Qc7 {[%emt 0:00:10]} Re8 {[%emt 0:00:03]} 30. Rxe5 {[%emt 0:00:05]} Rxe5 {[%emt 0:00:03]} 31. Qxe5 {[%emt 0:00:02]} Kf8 {[%emt 0:00:02]} 32. Re1 {[%emt 0:00:07]} Bf6 {[%emt 0:00:01]} 33. Qxe8# {[%emt 0:00:03] Be5} 1-0

[Event "11th LCC Super Blitz 2019"]
[Site "London"]
[Date "2019.12.08"]
[Round "4.1"]
[White "Aravindh, Chithambaram Vr"]
[Black "Howell, David Wl"]
[Result "1/2-1/2"]
[ECO "A30"]
[WhiteElo "2560"]
[BlackElo "2650"]
[Annotator "ChessBase"]
[PlyCount "54"]
[EventDate "2019.12.08"]
[EventType "swiss"]
[EventCountry "ENG"]
[SourceTitle "playchess.com"]
[Source "ChessBase"]
[SourceQuality "1"]
[TimeControl "180+2"]

1. Nf3 {[%emt 0:00:00]} Nf6 {[%emt 0:00:03]} 2. c4 {[%emt 0:00:01]} b6 {[%emt 0:00:02]} 3. g3 {[%emt 0:00:03]} Bb7 {[%emt 0:00:01]} 4. Bg2 {[%emt 0:00:02]} g6 {[%emt 0:00:02]} 5. b3 {[%emt 0:00:04]} Bg7 {[%emt 0:00:01]} 6. Bb2 {[%emt 0:00:02]} O-O {[%emt 0:00:02]} 7. O-O {[%emt 0:00:02]} c5 {[%emt 0:00:08]} 8. d4 {[%emt 0:00:03]} cxd4 {[%emt 0:00:08]} 9. Qxd4 {[%emt 0:00:02]} d5 {[%emt 0:00:21]} 10. cxd5 {[%emt 0:00:24]} Qxd5 {[%emt 0:00:11]} 11. Na3 {[%emt 0:00:17]} Nc6 {[%emt 0:00:24]} 12. Qf4 {[%emt 0:00:28]} Nh5 {[%emt 0:00:51]} 13. Qc1 {[%emt 0:00:01]} Rac8 {[%emt 0:00:06]} 14. Nc4 {[%emt 0:00:25]} Bxb2 {[%emt 0:00:21]} 15. Qxb2 {[%emt 0:00:02]} Qe6 {[%emt 0:00:00]} 16. Nfe5 {[%emt 0:00:29]} Nxe5 {[%emt 0:00:33]} 17. Bxb7 {[%emt 0:00:02]} Rc7 {[%emt 0:00:01]} 18. Qxe5 {[%emt 0:00:06]} Qxe5 {[%emt 0:00:01]} 19. Nxe5 {[%emt 0:00:02]} Rxb7 {[%emt 0:00:01]} 20. Rfc1 {[%emt 0:00:10]} Rd8 {[%emt 0:00:03]} 21. Rc2 {[%emt 0:00:06]} Ng7 {[%emt 0:00:07]} 22. Rac1 {[%emt 0:00:08]} Ne6 {[%emt 0:00:01]} 23. Rc8 {[%emt 0:00:10]} Rxc8 {[%emt 0:00:02]} 24. Rxc8+ {[%emt 0:00:01]} Kg7 {[%emt 0:00:00]} 25. f4 {[%emt 0:00:20]} f6 {[%emt 0:00:01]} 26. Nd3 {[%emt 0:00:03]} Kf7 {[%emt 0:00:05]} 27. Kf2 {[%emt 0:00:01]} Rc7 {[%emt 0:00:03]} 1/2-1/2

[Event "11th LCC Super Blitz 2019"]
[Site "London"]
[Date "2019.12.08"]
[Round "4.1"]
[White "Royal, Shreyas"]
[Black "Maze, Sebastien"]
[Result "1/2-1/2"]
[ECO "E70"]
[WhiteElo "1941"]
[BlackElo "2549"]
[Annotator "ChessBase"]
[PlyCount "102"]
[EventDate "2019.12.08"]
[EventType "swiss"]
[EventCountry "ENG"]
[SourceTitle "playchess.com"]
[Source "ChessBase"]
[SourceQuality "1"]
[TimeControl "180+2"]

1. d4 {[%emt 0:00:00]} Nf6 {[%emt 0:00:00]} 2. c4 {[%emt 0:00:00]} g6 {[%emt 0:00:00]} 3. Nc3 {[%emt 0:00:01]} Bg7 {[%emt 0:00:01]} 4. e4 {[%emt 0:00:01]} d6 {[%emt 0:00:01]} 5. Nge2 {[%emt 0:00:02]} O-O {[%emt 0:00:11]} 6. Ng3 {[%emt 0:00:01]} h5 {[%emt 0:00:01]} 7. Be2 {[%emt 0:00:03]} c5 {[%emt 0:00:04]} 8. d5 {[%emt 0:00:03]} e6 {[%emt 0:00:03]} 9. O-O {[%emt 0:00:08]} exd5 {[%emt 0:00:03]} 10. cxd5 {[%emt 0:00:02]} h4 {[%emt 0:00:01]} 11. Nh1 {[%emt 0:00:02]} a6 {[%emt 0:00:11]} 12. a4 {[%emt 0:00:02]} h3 {[%emt 0:00:12]} 13. g4 {[%emt 0:00:01]} Nbd7 {[%emt 0:00:04]} 14. f3 {[%emt 0:00:02]} Nh7 {[%emt 0:00:03]} 15. Be3 {[%emt 0:00:14]} f5 {[%emt 0:00:10]} 16. gxf5 {[%emt 0:00:43]} gxf5 {[%emt 0:00:00]} 17. exf5 {[%emt 0:00:02]} Rxf5 {[%emt 0:00:09]} 18. Nf2 {[%emt 0:00:02]} Ne5 {[%emt 0:00:11]} 19. f4 {[%emt 0:00:09]} Ng6 {[%emt 0:00:05]} 20. Bg4 {[%emt 0:00:16]} Rf7 {[%emt 0:00:24]} 21. Nxh3 {[%emt 0:00:12]} Qh4 {[%emt 0:00:07]} 22. Bxc8 Rxc8 {[%emt 0:00:01]} 23. Qf3 {[%emt 0:00:10]} Re8 {[%emt 0:00:23]} 24. Bf2 {[%emt 0:00:06]} Qh6 {[%emt 0:00:07]} 25. Kh1 {[%emt 0:00:18]} Nxf4 {[%emt 0:00:06]} 26. Nxf4 {[%emt 0:00:01]} Rxf4 {[%emt 0:00:04]} 27. Qg2 {[%emt 0:00:02]} Ref8 {[%emt 0:00:23]} 28. Bg3 {[%emt 0:00:12]} Rxf1+ {[%emt 0:00:02]} 29. Rxf1 {[%emt 0:00:01]} Rxf1+ {[%emt 0:00:01]} 30. Qxf1 {[%emt 0:00:00]} Qg6 {[%emt 0:00:03]} 31. Qe2 {[%emt 0:00:16]} Ng5 {[%emt 0:00:05]} 32. Qg4 {[%emt 0:00:18]} Qf6 {[%emt 0:00:10]} 33. Kg2 {[%emt 0:00:08]} b5 {[%emt 0:00:05]} 34. axb5 {[%emt 0:00:01]} axb5 {[%emt 0:00:01]} 35. Bh4 {[%emt 0:00:06]} Bh6 {[%emt 0:00:14]} 36. Bxg5 {[%emt 0:00:01]} Bxg5 {[%emt 0:00:05]} 37. h4 {[%emt 0:00:05]} Kf7 {[%emt 0:00:02]} 38. Qxg5 {[%emt 0:00:02]} Qd4 {[%emt 0:00:01]} 39. Qf5+ {[%emt 0:00:01]} Kg7 {[%emt 0:00:01]} 40. Qg5+ {[%emt 0:00:02]} Kf7 {[%emt 0:00:01]} 41. Qf5+ {[%emt 0:00:01]} Kg7 {[%emt 0:00:00]} 42. Qd7+ {[%emt 0:00:02]} Kg8 {[%emt 0:00:02]} 43. Qe6+ {[%emt 0:00:01]} Kg7 {[%emt 0:00:00]} 44. Qe7+ {[%emt 0:00:03]} Kg8 {[%emt 0:00:01]} 45. Qg5+ {[%emt 0:00:05]} Kf7 {[%emt 0:00:01]} 46. Qf5+ {[%emt 0:00:03]} Kg7 {[%emt 0:00:01]} 47. Qd7+ {[%emt 0:00:04]} Kg8 {[%emt 0:00:00]} 48. Qe6+ {[%emt 0:00:08]} Kg7 {[%emt 0:00:01]} 49. Qe7+ {[%emt 0:00:04]} Kg8 {[%emt 0:00:01]} 50. Qe8+ {[%emt 0:00:01]} Kg7 {[%emt 0:00:01]} 51. Qe7+ {[%emt 0:00:03]} Kg8 {[%emt 0:00:01]} 1/2-1/2

[Event "11th LCC Super Blitz 2019"]
[Site "London"]
[Date "2019.12.08"]
[Round "4.2"]
[White "Mortazavi, Ali"]
[Black "Arkell, Keith C"]
[Result "0-1"]
[ECO "E14"]
[WhiteElo "2333"]
[BlackElo "2453"]
[Annotator "ChessBase"]
[PlyCount "104"]
[EventDate "2019.12.08"]
[EventType "swiss"]
[EventCountry "ENG"]
[SourceTitle "playchess.com"]
[Source "ChessBase"]
[SourceQuality "1"]
[TimeControl "180+2"]

1. d4 {[%emt 0:00:00]} Nf6 {[%emt 0:00:00]} 2. Nf3 {[%emt 0:00:00]} e6 {[%emt 0:00:01]} 3. e3 {[%emt 0:00:01]} c5 {[%emt 0:00:01]} 4. Bd3 {[%emt 0:00:01]} cxd4 {[%emt 0:00:04]} 5. exd4 {[%emt 0:00:01]} Be7 {[%emt 0:00:01]} 6. O-O {[%emt 0:00:01]} b6 {[%emt 0:00:01]} 7. b3 {[%emt 0:00:01]} Bb7 {[%emt 0:00:02]} 8. Bb2 {[%emt 0:00:01]} O-O {[%emt 0:00:02]} 9. Nbd2 {[%emt 0:00:00]} d6 {[%emt 0:00:01]} 10. Re1 {[%emt 0:00:01]} Nbd7 {[%emt 0:00:00]} 11. c4 {[%emt 0:00:11]} Re8 {[%emt 0:00:03]} 12. Rc1 {[%emt 0:00:01]} Bf8 {[%emt 0:00:01]} 13. Bb1 {[%emt 0:00:01]} g6 {[%emt 0:00:01]} 14. a4 {[%emt 0:00:04]} a5 {[%emt 0:00:01]} 15. Ng5 {[%emt 0:00:14]} Bg7 {[%emt 0:00:05]} 16. Nf1 {[%emt 0:00:15]} h6 {[%emt 0:00:04]} 17. Nf3 {[%emt 0:00:02]} Qc7 {[%emt 0:00:03]} 18. Ne3 {[%emt 0:00:05]} Rad8 {[%emt 0:00:10]} 19. h3 {[%emt 0:00:16]} Qb8 {[%emt 0:00:01]} 20. Ba3 {[%emt 0:00:14]} e5 {[%emt 0:00:07]} 21. dxe5 {[%emt 0:00:06]} dxe5 {[%emt 0:00:10]} 22. Nd5 {[%emt 0:00:13]} Nc5 {[%emt 0:00:01]} 23. Nxf6+ {[%emt 0:00:19]} Bxf6 {[%emt 0:00:01]} 24. Qe2 {[%emt 0:00:01]} e4 {[%emt 0:00:03]} 25. Nh2 {[%emt 0:00:02]} Nd3 {[%emt 0:00:27]} 26. Ng4 {[%emt 0:00:00]} Bg7 {[%emt 0:00:01]} 27. Qe3 {[%emt 0:00:06]} Nxe1 {[%emt 0:00:06]} 28. Rxe1 {[%emt 0:00:04]} Kh7 {[%emt 0:00:25]} 29. Qxb6 {[%emt 0:00:01]} Ba8 {[%emt 0:00:15]} 30. Nf6+ {[%emt 0:00:11]} Bxf6 31. Qxf6 {[%emt 0:00:01]} Qe5 {[%emt 0:00:39]} 32. Qxf7+ {[%emt 0:00:01]} Qg7 {[%emt 0:00:01]} 33. Qf4 {[%emt 0:00:07]} Rd7 {[%emt 0:00:19]} 34. h4 {[%emt 0:00:06]} Qe5 {[%emt 0:00:09]} 35. Qe3 {[%emt 0:00:05]} Red8 {[%emt 0:00:04]} 36. Bc1 {[%emt 0:00:02]} Qg7 {[%emt 0:00:01]} 37. Bc2 {[%emt 0:00:01]} Bc6 {[%emt 0:00:08]} 38. Qc5 {[%emt 0:00:06]} Qf6 {[%emt 0:00:07]} 39. Be3 {[%emt 0:00:19]} Ba8 {[%emt 0:00:08]} 40. Qxa5 {[%emt 0:00:04]} Qxh4 {[%emt 0:00:02]} 41. c5 {[%emt 0:00:07]} Qf6 {[%emt 0:00:05]} 42. Qb5 {[%emt 0:00:11]} Qc3 {[%emt 0:00:01]} 43. Re2 {[%emt 0:00:09]} Qa1+ {[%emt 0:00:02]} 44. Kh2 {[%emt 0:00:02]} Qe5+ {[%emt 0:00:02]} 45. g3 {[%emt 0:00:02]} Qh5+ {[%emt 0:00:00]} 46. Kg2 {[%emt 0:00:01]} Qf3+ {[%emt 0:00:01]} 47. Kh2 {[%emt 0:00:01]} Qh5+ {[%emt 0:00:04]} 48. Kg2 {[%emt 0:00:01]} Qf3+ {[%emt 0:00:00]} 49. Kh2 {[%emt 0:00:02]} Rd1 {[%emt 0:00:07]} 50. Bxd1 {[%emt 0:00:16]} Rxd1 {[%emt 0:00:02]} 51. Qd7+ {[%emt 0:00:03]} Rxd7 {[%emt 0:00:02]} 52. Re1 Rd5 {[%emt 0:00:01]} 0-1

[Event "11th LCC Super Blitz 2019"]
[Site "London"]
[Date "2019.12.08"]
[Round "4.2"]
[White "Stoyanov, Viktor"]
[Black "Grover, Sahaj"]
[Result "0-1"]
[ECO "C07"]
[WhiteElo "2191"]
[BlackElo "2486"]
[Annotator "ChessBase"]
[PlyCount "98"]
[EventDate "2019.12.08"]
[EventType "swiss"]
[EventCountry "ENG"]
[SourceTitle "playchess.com"]
[Source "ChessBase"]
[SourceQuality "1"]
[TimeControl "180+2"]

1. e4 {[%emt 0:00:00]} e6 {[%emt 0:00:00]} 2. d4 {[%emt 0:00:01]} d5 {[%emt 0:00:00]} 3. Nd2 {[%emt 0:00:01]} c5 {[%emt 0:00:02]} 4. exd5 Qxd5 {[%emt 0:00:01]} 5. dxc5 {[%emt 0:00:04]} Bxc5 {[%emt 0:00:02]} 6. Ngf3 {[%emt 0:00:02]} Nf6 {[%emt 0:00:01]} 7. Bc4 {[%emt 0:00:01]} Qh5 {[%emt 0:00:10]} 8. O-O {[%emt 0:00:03]} Nc6 {[%emt 0:00:01]} 9. c3 {[%emt 0:00:02]} e5 {[%emt 0:00:10]} 10. Be2 {[%emt 0:00:04]} O-O {[%emt 0:00:23]} 11. b4 {[%emt 0:00:06]} Bb6 {[%emt 0:00:05]} 12. a4 {[%emt 0:00:01]} Bc7 {[%emt 0:00:25]} 13. h3 {[%emt 0:00:34]} Bxh3 {[%emt 0:00:05]} 14. gxh3 {[%emt 0:00:06]} e4 {[%emt 0:00:01]} 15. Kg2 {[%emt 0:00:36]} Rad8 {[%emt 0:00:16]} 16. Rg1 {[%emt 0:00:14]} exf3+ {[%emt 0:00:11]} 17. Bxf3 {[%emt 0:00:02]} Qe5 {[%emt 0:00:07]} 18. Qe2 {[%emt 0:00:09]} Qh2+ {[%emt 0:00:04]} 19. Kf1 {[%emt 0:00:00]} Rfe8 {[%emt 0:00:01]} 20. Rh1 {[%emt 0:00:15]} Rxe2 {[%emt 0:00:09]} 21. Rxh2 {[%emt 0:00:01]} Rexd2 {[%emt 0:00:01]} 22. Bxd2 {[%emt 0:00:01]} Bxh2 {[%emt 0:00:02]} 23. Be3 {[%emt 0:00:01]} Nd5 {[%emt 0:00:11]} 24. Bxd5 {[%emt 0:00:19]} Rxd5 {[%emt 0:00:02]} 25. b5 {[%emt 0:00:00]} Na5 {[%emt 0:00:03]} 26. Bxa7 {[%emt 0:00:02]} Be5 {[%emt 0:00:02]} 27. Re1 {[%emt 0:00:03]} g5 {[%emt 0:00:04]} 28. Re3 {[%emt 0:00:02]} Nc4 {[%emt 0:00:02]} 29. Re2 {[%emt 0:00:06]} Bxc3 {[%emt 0:00:18]} 30. Rc2 {[%emt 0:00:06]} Nd2+ {[%emt 0:00:03]} 31. Ke2 {[%emt 0:00:01]} Ba5 {[%emt 0:00:01]} 32. Be3 {[%emt 0:00:03]} Ne4 {[%emt 0:00:03]} 33. Rc8+ {[%emt 0:00:06]} Kg7 {[%emt 0:00:01]} 34. Rb8 {[%emt 0:00:01]} Nc3+ {[%emt 0:00:03]} 35. Kf3 {[%emt 0:00:01]} Rd7 {[%emt 0:00:07]} 36. Rc8 {[%emt 0:00:02]} Nxa4 {[%emt 0:00:15]} 37. Bxg5 {[%emt 0:00:01]} b6 {[%emt 0:00:06]} 38. Be3 {[%emt 0:00:03]} Nc3 {[%emt 0:00:02]} 39. Rc6 {[%emt 0:00:04]} Nxb5 {[%emt 0:00:03]} 40. Bxb6 {[%emt 0:00:02]} Nd4+ {[%emt 0:00:02]} 41. Bxd4+ {[%emt 0:00:01]} Rxd4 {[%emt 0:00:01]} 42. Rc5 {[%emt 0:00:09]} Bb6 {[%emt 0:00:02]} 43. Rc6 {[%emt 0:00:01]} Rb4 {[%emt 0:00:02]} 44. Rc2 {[%emt 0:00:01]} Rb3+ {[%emt 0:00:01]} 45. Kg2 {[%emt 0:00:01]} Kg6 {[%emt 0:00:00]} 46. Rc6+ {[%emt 0:00:01]} f6 {[%emt 0:00:01]} 47. Rc2 {[%emt 0:00:01]} h5 {[%emt 0:00:01]} 48. f3 {[%emt 0:00:03]} Bd4 {[%emt 0:00:01]} 49. Rd2 {[%emt 0:00:01]} Rb2 {[%emt 0:00:01]} 0-1

[Event "11th LCC Super Blitz 2019"]
[Site "London"]
[Date "2019.12.08"]
[Round "4.3"]
[White "Beinoras, Mindaugas"]
[Black "Ozturan, Cem"]
[Result "1-0"]
[ECO "D00"]
[WhiteElo "2401"]
[BlackElo "1853"]
[Annotator "NA"]
[PlyCount "81"]
[EventDate "2019.12.08"]
[EventType "swiss"]
[EventCountry "ENG"]
[SourceTitle "playchess.com"]
[Source "ChessBase"]
[SourceQuality "1"]
[TimeControl "180+2"]

1. d4 {[%emt 0:00:00]} Nf6 {[%emt 0:00:00]} 2. Bg5 {[%emt 0:00:02]} d5 {[%emt 0:00:00]} 3. e3 {[%emt 0:00:01]} h6 {[%emt 0:00:02]} 4. Bh4 {[%emt 0:00:04]} c6 {[%emt 0:00:01]} 5. Bd3 {[%emt 0:00:03]} e6 {[%emt 0:00:04]} 6. f4 {[%emt 0:00:05]} Be7 {[%emt 0:00:01]} 7. Nf3 {[%emt 0:00:01]} Nbd7 {[%emt 0:00:04]} 8. Nbd2 {[%emt 0:00:01]} b6 {[%emt 0:00:02]} 9. O-O {[%emt 0:00:03]} O-O {[%emt 0:00:02]} 10. Ne5 {[%emt 0:00:04]} Bb7 {[%emt 0:00:08]} 11. a4 {[%emt 0:00:01]} c5 {[%emt 0:00:05]} 12. c3 {[%emt 0:00:02]} Ne4 {[%emt 0:00:10]} 13. Bxe7 {[%emt 0:00:06]} Qxe7 {[%emt 0:00:03]} 14. Bxe4 {[%emt 0:00:20]} dxe4 {[%emt 0:00:03]} 15. Qc2 {[%emt 0:00:02]} Nxe5 {[%emt 0:00:28]} 16. fxe5 {[%emt 0:00:20]} cxd4 {[%emt 0:00:30]} 17. exd4 {[%emt 0:00:09]} Rac8 {[%emt 0:00:20]} 18. Nxe4 {[%emt 0:00:08]} Bxe4 {[%emt 0:00:02]} 19. Qxe4 {[%emt 0:00:02]} Rfd8 {[%emt 0:00:07]} 20. Rf3 {[%emt 0:00:06]} Qg5 {[%emt 0:00:15]} 21. Raf1 {[%emt 0:00:07]} Rc7 {[%emt 0:00:03]} 22. Rg3 {[%emt 0:00:03]} Qe7 {[%emt 0:00:15]} 23. Qg4 {[%emt 0:00:12]} Qf8 {[%emt 0:00:03]} 24. h4 {[%emt 0:00:03]} Rdc8 {[%emt 0:00:24]} 25. h5 {[%emt 0:00:03]} Rd8 {[%emt 0:00:02]} 26. Qf4 {[%emt 0:00:14]} Kh7 {[%emt 0:00:02]} 27. Qe4+ {[%emt 0:00:03]} Kh8 {[%emt 0:00:02]} 28. Rf4 {[%emt 0:00:01]} a6 {[%emt 0:00:15]} 29. Rfg4 {[%emt 0:00:05]} b5 {[%emt 0:00:05]} 30. axb5 {[%emt 0:00:10]} axb5 {[%emt 0:00:01]} 31. Kh2 {[%emt 0:00:17]} b4 {[%emt 0:00:01]} 32. cxb4 {[%emt 0:00:04]} Rc4 {[%emt 0:00:04]} 33. Qe3 {[%emt 0:00:19]} Rxb4 {[%emt 0:00:05]} 34. b3 {[%emt 0:00:01]} Rdb8 {[%emt 0:00:02]} 35. Qf4 {[%emt 0:00:23]} Rxb3 {[%emt 0:00:02]} 36. Rxg7 {[%emt 0:00:03]} Qxg7 {[%emt 0:00:02]} 37. Rxg7 {[%emt 0:00:01]} Kxg7 {[%emt 0:00:01]} 38. Qf6+ {[%emt 0:00:01]} Kg8 {[%emt 0:00:04]} 39. Qxh6 {[%emt 0:00:02]} R8b4 {[%emt 0:00:08]} 40. Qg5+ {[%emt 0:00:02]} Kh7 {[%emt 0:00:02]} 41. h6 {[%emt 0:00:02]} 1-0

[Event "11th LCC Super Blitz 2019"]
[Site "London"]
[Date "2019.12.08"]
[Round "4.3"]
[White "Ratnesan, Ranesh"]
[Black "Willow, Jonah B"]
[Result "0-1"]
[ECO "A37"]
[WhiteElo "2213"]
[BlackElo "2355"]
[Annotator "NA"]
[PlyCount "66"]
[EventDate "2019.12.08"]
[EventType "swiss"]
[EventCountry "ENG"]
[SourceTitle "playchess.com"]
[Source "ChessBase"]
[SourceQuality "1"]
[TimeControl "180+2"]

1. Nf3 {[%emt 0:00:00]} c5 {[%emt 0:00:00]} 2. c4 {[%emt 0:00:00]} Nc6 {[%emt 0:00:00]} 3. Nc3 {[%emt 0:00:02]} g6 {[%emt 0:00:00]} 4. g3 {[%emt 0:00:01]} Bg7 {[%emt 0:00:01]} 5. Bg2 {[%emt 0:00:01]} e6 {[%emt 0:00:00]} 6. O-O {[%emt 0:00:02]} Nge7 {[%emt 0:00:02]} 7. d3 {[%emt 0:00:02]} O-O {[%emt 0:00:01]} 8. Rb1 {[%emt 0:00:05]} b6 {[%emt 0:00:06]} 9. a3 {[%emt 0:00:05]} d5 {[%emt 0:00:02]} 10. cxd5 {[%emt 0:00:19]} exd5 {[%emt 0:00:02]} 11. Qc2 {[%emt 0:00:02]} Bb7 {[%emt 0:00:07]} 12. e4 {[%emt 0:00:04]} dxe4 {[%emt 0:00:12]} 13. dxe4 {[%emt 0:00:02]} Nd4 {[%emt 0:00:01]} 14. Qd1 {[%emt 0:00:17]} Nec6 {[%emt 0:00:09]} 15. Nd5 {[%emt 0:00:07]} Nxf3+ {[%emt 0:00:08]} 16. Qxf3 {[%emt 0:00:05]} Nd4 {[%emt 0:00:08]} 17. Qd1 {[%emt 0:00:07]} f5 {[%emt 0:00:20]} 18. Nc3 {[%emt 0:00:06]} Kh8 {[%emt 0:00:14]} 19. Be3 {[%emt 0:00:03]} fxe4 {[%emt 0:00:19]} 20. Nxe4 {[%emt 0:00:03]} Qe7 {[%emt 0:00:13]} 21. Qg4 {[%emt 0:00:08]} Rae8 {[%emt 0:00:14]} 22. Bg5 {[%emt 0:00:10]} Qe5 {[%emt 0:00:10]} 23. Bf4 {[%emt 0:00:06]} Qd5 {[%emt 0:00:31]} 24. Rbe1 {[%emt 0:00:08]} Nc2 {[%emt 0:00:12]} 25. Rd1 {[%emt 0:00:06]} Qc6 {[%emt 0:00:08]} 26. Rd6 {[%emt 0:00:07]} Qc8 {[%emt 0:00:12]} 27. Qxc8 Bxc8 28. Rd2 {[%emt 0:00:20]} Nd4 {[%emt 0:00:01]} 29. Nd6 {[%emt 0:00:08]} Rd8 {[%emt 0:00:05]} 30. Nxc8 {[%emt 0:00:04]} Rxc8 {[%emt 0:00:02]} 31. Bd5 {[%emt 0:00:06]} Rcd8 {[%emt 0:00:02]} 32. Bc4 {[%emt 0:00:04]} Nf3+ {[%emt 0:00:03]} 33. Kg2 {[%emt 0:00:01]} Nxd2 {[%emt 0:00:00]} 0-1

[Event "11th LCC Super Blitz 2019"]
[Site "London"]
[Date "2019.12.08"]
[Round "4.3"]
[White "Stepanyan, Henrik"]
[Black "Wallace, John Paul"]
[Result "1/2-1/2"]
[ECO "E90"]
[WhiteElo "2193"]
[BlackElo "2344"]
[Annotator "NA"]
[PlyCount "128"]
[EventDate "2019.12.08"]
[EventType "swiss"]
[EventCountry "ENG"]
[SourceTitle "playchess.com"]
[Source "ChessBase"]
[SourceQuality "1"]
[TimeControl "180+2"]

1. d4 {[%emt 0:03:15]} Nf6 2. c4 g6 3. Nc3 Bg7 4. Nf3 O-O {[%emt 0:00:02]} 5. e4 {[%emt 0:00:01]} d6 6. h3 e5 {[%emt 0:00:02]} 7. dxe5 dxe5 8. Qxd8 {[%emt 0:00:02]} Rxd8 9. Bg5 {[%emt 0:00:02]} Na6 {[%emt 0:00:05]} 10. Nd5 {[%emt 0:00:03]} Rd6 11. Bxf6 {[%emt 0:00:02]} Bxf6 12. Rc1 b6 {[%emt 0:00:09]} 13. b4 {[%emt 0:00:02]} c5 {[%emt 0:00:35]} 14. b5 {[%emt 0:00:03]} Nb8 {[%emt 0:00:41]} 15. Nc7 {[%emt 0:00:32]} Bb7 16. Nxa8 {[%emt 0:00:01]} Bxa8 {[%emt 0:00:06]} 17. Rd1 {[%emt 0:00:05]} Rxd1+ 18. Kxd1 {[%emt 0:00:01]} Bxe4 19. Nd2 {[%emt 0:00:10]} Bf5 {[%emt 0:00:09]} 20. g4 {[%emt 0:00:03]} Be6 21. Bg2 Bg5 {[%emt 0:00:04]} 22. Bd5 {[%emt 0:00:11]} Bc8 {[%emt 0:00:19]} 23. Re1 {[%emt 0:00:03]} Bf4 {[%emt 0:00:02]} 24. Nf3 {[%emt 0:00:36]} Nd7 {[%emt 0:00:05]} 25. Kc2 Kf8 {[%emt 0:00:08]} 26. Bc6 {[%emt 0:00:07]} f6 {[%emt 0:00:01]} 27. Nd2 {[%emt 0:00:08]} Ke7 {[%emt 0:00:04]} 28. Ne4 {[%emt 0:00:03]} Nf8 {[%emt 0:00:02]} 29. Bd5 {[%emt 0:00:02]} Ne6 {[%emt 0:00:02]} 30. Bxe6 {[%emt 0:00:09]} Bxe6 31. Kb3 {[%emt 0:00:01]} f5 {[%emt 0:00:03]} 32. gxf5 {[%emt 0:00:07]} gxf5 {[%emt 0:00:01]} 33. Nc3 e4 {[%emt 0:00:05]} 34. Nd5+ {[%emt 0:00:10]} Bxd5 {[%emt 0:00:02]} 35. cxd5 Kd6 {[%emt 0:00:05]} 36. Kc4 Ke5 {[%emt 0:00:04]} 37. Rg1 {[%emt 0:00:05]} Bd2 {[%emt 0:00:13]} 38. Rg7 {[%emt 0:00:14]} Be1 {[%emt 0:00:03]} 39. Re7+ {[%emt 0:00:09]} Kd6 {[%emt 0:00:09]} 40. Re6+ {[%emt 0:00:01]} Kd7 41. Rf6 Bxf2 {[%emt 0:00:04]} 42. Rxf5 e3 43. Re5 {[%emt 0:00:15]} h5 {[%emt 0:00:04]} 44. Re6 {[%emt 0:00:03]} h4 {[%emt 0:00:03]} 45. Kd3 {[%emt 0:00:01]} Kc7 {[%emt 0:00:07]} 46. a4 {[%emt 0:00:12]} Kd7 47. Rg6 {[%emt 0:00:05]} Kc7 {[%emt 0:00:03]} 48. Rg7+ {[%emt 0:00:15]} Kd6 49. Rxa7 c4+ {[%emt 0:00:02]} 50. Ke2 {[%emt 0:00:06]} Kxd5 {[%emt 0:00:02]} 51. Rc7 {[%emt 0:00:09]} Kd4 {[%emt 0:00:10]} 52. a5 bxa5 {[%emt 0:00:01]} 53. b6 Bg3 {[%emt 0:00:01]} 54. Ra7 {[%emt 0:00:09]} c3 {[%emt 0:00:07]} 55. Rxa5 {[%emt 0:00:02]} c2 56. Ra1 {[%emt 0:00:04]} Kc3 {[%emt 0:00:22]} 57. b7 Kb2 {[%emt 0:00:02]} 58. Rf1 c1=Q {[%emt 0:00:06]} 59. Rxc1 {[%emt 0:00:01]} Kxc1 60. Kxe3 {[%emt 0:00:04]} Kd1 61. Kf3 {[%emt 0:00:01]} Ke1 62. Kg2 Ke2 63. Kh1 Kf1 {[%emt 0:00:02]} 64. b8=Q {[%emt 0:00:04]} Bxb8 1/2-1/2

[Event "11th LCC Super Blitz 2019"]
[Site "London"]
[Date "2019.12.08"]
[Round "4.4"]
[White "Klingher, Dominic"]
[Black "Bird, Joel"]
[Result "1-0"]
[ECO "C30"]
[WhiteElo "2071"]
[BlackElo "2009"]
[Annotator "NA"]
[PlyCount "32"]
[EventDate "2019.12.08"]
[EventType "swiss"]
[EventCountry "ENG"]
[SourceTitle "playchess.com"]
[Source "ChessBase"]
[SourceQuality "1"]
[TimeControl "180+2"]

1. e4 {[%emt 0:00:00]} e5 {[%emt 0:00:00]} 2. Nc3 {[%emt 0:00:01]} Nf6 {[%emt 0:00:00]} 3. Bc4 {[%emt 0:00:01]} Nc6 {[%emt 0:00:15]} 4. d3 {[%emt 0:00:03]} Bc5 {[%emt 0:00:09]} 5. f4 {[%emt 0:00:06]} d6 {[%emt 0:00:07]} 6. Nf3 {[%emt 0:00:04]} a6 {[%emt 0:00:05]} 7. Qe2 {[%emt 0:00:16]} Bg4 {[%emt 0:00:03]} 8. Be3 {[%emt 0:00:06]} Nd4 {[%emt 0:00:18]} 9. Bxd4 {[%emt 0:00:03]} Bxd4 {[%emt 0:00:02]} 10. h3 {[%emt 0:00:18]} Bxf3 {[%emt 0:00:17]} 11. Qxf3 {[%emt 0:00:03]} Qe7 {[%emt 0:00:08]} 12. g4 {[%emt 0:00:14]} exf4 {[%emt 0:00:08]} 13. g5 {[%emt 0:00:11]} Nd7 {[%emt 0:00:10]} 14. Nd5 {[%emt 0:00:03]} Qd8 {[%emt 0:00:11]} 15. c3 {[%emt 0:00:29]} Be3 {[%emt 0:00:41]} 16. Nxe3 {[%emt 0:00:05]} fxe3 {[%emt 0:00:03]} 1-0